bitfinex/quotes_BTCUSD_20241229
["timestamp","ask_amount","ask_price","bid_price","bid_amount"]
[1735490589509,0.17978632,93856.0,93822.0,0.077]
[1735490589701,0.17978632,93856.0,93826.0,0.00014512]
[1735490589910,0.10398632,93849.0,93834.0,0.001]
[1735490590041,3.03842432,93848.0,93834.0,0.001]
[1735490590245,0.00030615,93804.0,93801.0,8.54e-05]
[1735490590472,0.00030615,93804.0,93801.0,0.00059433]
[1735490590791,0.01671887,93845.0,93810.0,9.385e-05]
[1735490591002,0.10955513,93843.0,93810.0,9.385e-05]
[1735490591146,3.718884,93842.0,93810.0,9.385e-05]
[1735490591352,0.10398632,93841.0,93810.0,9.385e-05]
[1735490591549,1.348123,93840.0,93810.0,9.385e-05]
[1735490591865,0.01671915,93834.0,93810.0,9.385e-05]
[1735490592093,0.10398632,93833.0,93810.0,9.385e-05]
[1735490593684,0.01671915,93834.0,93811.0,0.10398632]
[1735490593898,0.002,93848.0,93812.0,0.01147371]
[1735490594103,0.10398632,93847.0,93813.0,0.10398632]
[1735490594306,0.007,93848.0,93815.0,0.0458]
[1735490594480,0.007,93848.0,93816.0,0.18205193]
[1735490594481,0.005,93848.0,93816.0,0.18205193]
[1735490594914,0.09344779,93851.0,93816.0,0.18205193]
[1735490595330,0.09344779,93869.0,93816.0,0.18205193]
[1735490595460,0.11656338,93857.0,93817.0,0.02279458]
[1735490595667,0.11656338,93857.0,93818.0,0.1050519]
[1735490596272,0.11656338,93857.0,93818.0,0.10398632]
[1735490596893,0.01671564,93848.0,93818.0,0.10398632]
[1735490598170,0.09344779,93869.0,93818.0,0.10398632]
[1735490598396,0.10398632,93862.0,93819.0,0.03495809]
[1735490598591,0.00953244,93863.0,93823.0,0.10398632]
[1735490598592,0.0001706,93863.0,93823.0,0.10398632]
[1735490598780,0.0001706,93863.0,93825.0,0.10398632]
[1735490598983,0.0001706,93863.0,93828.0,0.1]
[1735490599182,0.0001706,93863.0,93829.0,0.10398632]
[1735490599620,0.0001706,93863.0,93831.0,0.10398632]
[1735490599863,0.0001706,93863.0,93834.0,0.077]
[1735490600071,0.0021706,93863.0,93835.0,0.10398632]
[1735490600243,0.0021706,93863.0,93836.0,0.03267863]
[1735490600442,0.0021706,93863.0,93838.0,0.1]
[1735490600443,0.0001708,93848.0,93838.0,0.1]
[1735490600655,0.0001708,93848.0,93839.0,0.10398632]
[1735490600958,0.00025768,93848.0,93839.0,0.10398632]
[1735490601313,0.00025768,93848.0,93840.0,0.10398632]
[1735490601638,0.00025768,93848.0,93841.0,0.07549234]
[1735490601834,0.00025768,93848.0,93842.0,0.10398632]
[1735490602842,0.00025768,93848.0,93843.0,0.00106522]
[1735490603017,0.00025768,93848.0,93844.0,0.10398632]
[1735490603225,0.00025768,93848.0,93845.0,0.00106519]
[1735490603436,0.00025768,93848.0,93846.0,0.1220407]
[1735490603646,0.00025768,93848.0,93847.0,0.00106516]
[1735490603647,0.00125768,93848.0,93847.0,0.00106516]
[1735490603827,0.00125768,93848.0,93847.0,0.10505148]
[1735490604032,0.00025768,93848.0,93847.0,0.10505148]
[1735490604457,0.00125768,93848.0,93847.0,0.10505148]
[1735490604634,0.00225768,93848.0,93847.0,0.34473714]
[1735490604856,0.0001706,93863.0,93850.0,0.44125844]
[1735490605058,0.0001706,93863.0,93856.0,0.10398632]
[1735490605831,0.0001706,93863.0,93859.0,0.10398632]
[1735490606052,0.0001706,93863.0,93862.0,0.10398632]
[1735490606458,0.0001706,93863.0,93862.0,0.17968632]
[1735490607180,0.0001706,93863.0,93862.0,0.22828632]
[1735490608203,0.0021706,93863.0,93862.0,0.23728632]
[1735490609040,0.0021706,93863.0,93862.0,0.32828632]
[1735490609041,0.0001706,93863.0,93862.0,0.32828632]
[1735490609243,0.0001706,93863.0,93862.0,0.8495391]
[1735490609448,0.0001706,93876.0,93863.0,0.1]
[1735490609661,0.0001706,93876.0,93875.0,0.10398632]
[1735490609873,0.0001706,93876.0,93875.0,0.72094476]
[1735490610336,0.0001706,93876.0,93875.0,0.62094476]
[1735490610536,0.0001706,93876.0,93875.0,0.79303924]
[1735490610769,0.0001706,93883.0,93877.0,0.1]
[1735490610942,0.00032346,93883.0,93882.0,0.10398632]
[1735490611195,0.00032346,93883.0,93882.0,0.15258632]
[1735490611398,0.00032346,93883.0,93882.0,0.25258632]
[1735490611568,0.00032346,93883.0,93882.0,0.33675024]
[1735490612004,0.00132346,93883.0,93882.0,0.43675024]
[1735490612456,0.00032346,93883.0,93882.0,0.43675024]
[1735490612815,0.00132346,93883.0,93882.0,0.44575024]
[1735490613181,0.00132346,93883.0,93882.0,0.34575024]
[1735490613377,0.00132346,93883.0,93882.0,0.11298632]
[1735490614426,0.00132346,93883.0,93882.0,0.28868632]
[1735490615009,0.00032346,93883.0,93882.0,0.27968632]
[1735490615229,0.06395903,93961.0,93914.0,0.1]
[1735490615435,0.00050973,93922.0,93915.0,0.01]
[1735490616065,0.00050973,93922.0,93915.0,0.11]
[1735490616866,0.00050973,93922.0,93915.0,0.113]
[1735490617096,0.00050973,93922.0,93920.0,0.1]
[1735490617498,0.00050973,93922.0,93921.0,0.1]
[1735490617726,0.00050973,93922.0,93921.0,0.1113]
[1735490618376,0.00050973,93922.0,93921.0,0.21528632]
[1735490620379,0.00150973,93922.0,93921.0,0.22428632]
[1735490620574,0.00250973,93922.0,93921.0,0.22728632]
[1735490620977,0.00250973,93922.0,93921.0,0.21598632]
[1735490621244,0.00150973,93922.0,93921.0,0.21298632]
[1735490621417,0.00150973,93922.0,93921.0,0.009]
[1735490621622,0.00250973,93922.0,93921.0,0.012]
[1735490622118,0.00250973,93922.0,93921.0,0.112]
[1735490622323,0.00250973,93922.0,93921.0,0.1232]
[1735490622545,0.00150973,93922.0,93921.0,0.1142]
[1735490622941,0.00250973,93922.0,93921.0,0.21598632]
[1735490623866,0.00250973,93922.0,93921.0,0.29448632]
[1735490624826,0.00150973,93922.0,93921.0,0.29148632]
[1735490625244,0.00250973,93922.0,93921.0,0.29448632]
[1735490625588,0.00250973,93922.0,93921.0,0.33393495]
[1735490626152,0.00150973,93922.0,93921.0,0.32493495]
[1735490626472,0.00259503,93922.0,93921.0,0.33393495]
[1735490627370,0.00259503,93922.0,93921.0,0.38283495]
[1735490627847,0.00259503,93922.0,93921.0,0.92409339]
[1735490628665,0.01669862,93964.0,93957.0,0.1]
[1735490628866,0.01685149,93964.0,93958.0,0.01]
[1735490631696,0.01685149,93964.0,93958.0,0.012]
[1735490631876,0.01685149,93964.0,93961.0,0.1]
[1735490632902,0.00015287,93964.0,93963.0,0.1]
[1735490633210,0.00015287,93964.0,93963.0,0.20398632]
[1735490633421,0.00015287,93964.0,93963.0,0.22619136]
[1735490635334,0.00015287,93964.0,93961.0,0.006]
[1735490635507,0.00015287,93964.0,93961.0,0.009]
[1735490635848,0.00015287,93964.0,93961.0,0.003]
[1735490636045,0.00015287,93964.0,93957.0,0.1]
[1735490636265,0.00015287,93964.0,93963.0,0.009]
[1735490636466,0.00015287,93964.0,93963.0,0.015]
[1735490638494,0.00015287,93964.0,93951.0,0.1]
[1735490638758,0.00023807,93964.0,93952.0,0.01]
[1735490638895,0.00023807,93964.0,93961.0,0.009]
[1735490639370,0.00023807,93964.0,93957.0,0.002]
[1735490639677,0.00023807,93964.0,93951.0,0.1]
[1735490639887,0.00023807,93964.0,93951.0,0.102]
[1735490640037,0.00023807,93964.0,93951.0,0.1122]
[1735490640241,0.00023807,93964.0,93963.0,0.006]
[1735490641666,0.10422439,93964.0,93963.0,0.006]
[1735490641869,0.18732439,93964.0,93963.0,0.006]
[1735490642307,0.18758037,93964.0,93963.0,0.006]
[1735490642578,1.58089337,93964.0,93963.0,0.006]
[1735490642814,0.0459,93963.0,93926.0,0.1]
[1735490643058,0.10398632,93960.0,93927.0,0.01001704]
[1735490643296,0.10398632,93960.0,93921.0,0.0001704]
[1735490643297,0.0831,93958.0,93921.0,0.0001704]
[1735490643532,0.01669989,93952.0,93921.0,0.0001704]
[1735490643938,0.0831,93950.0,93921.0,0.0001704]
[1735490644150,0.74310532,93949.0,93921.0,0.0001704]
[1735490644371,0.722219,93948.0,93921.0,0.0001704]
[1735490644577,0.10398632,93947.0,93921.0,0.0001704]
[1735490645218,1.497193,93946.0,93921.0,0.0001704]
[1735490645424,0.18708632,93945.0,93921.0,0.0001704]
[1735490645640,0.0831,93944.0,93921.0,0.0001704]
[1735490645854,0.43728795,93943.0,93921.0,0.0001704]
[1735490646054,1.381681,93942.0,93921.0,0.0001704]
[1735490646283,0.0831,93921.0,93868.0,0.1]
[1735490646492,0.0831,93921.0,93855.0,0.0761]
[1735490646493,0.18708632,93909.0,93866.0,0.1]
[1735490646695,1.808625,93908.0,93879.0,0.04292043]
[1735490646898,0.01670588,93902.0,93879.0,0.04292043]
[1735490647105,0.10398632,93901.0,93876.0,0.0001706]
[1735490647517,0.10398632,93901.0,93876.0,0.00068033]
[1735490647737,0.00028036,93900.0,93876.0,0.00068033]
[1735490647965,0.10398632,93899.0,93878.0,0.001]
[1735490648389,0.10398632,93899.0,93876.0,0.00068033]
[1735490648593,0.01670588,93902.0,93885.0,0.1]
[1735490648817,0.005,93901.0,93885.0,0.1]
[1735490649036,0.01670588,93902.0,93885.0,0.1]
[1735490649968,0.001,93901.0,93877.0,0.20398632]
[1735490650427,0.01670588,93902.0,93878.0,0.0001704]
[1735490650638,0.01670588,93902.0,93885.0,0.1]
[1735490650839,0.01670588,93902.0,93885.0,0.101]
[1735490651220,0.001,93899.0,93885.0,0.101]
[1735490651425,0.01670588,93902.0,93885.0,0.1]
[1735490652843,0.001,93899.0,93885.0,0.1]
[1735490653004,0.001,93899.0,93886.0,0.022447]
[1735490653415,0.001,93899.0,93889.0,0.1]
[1735490654525,0.0771,93916.0,93894.0,0.1]
[1735490656215,0.0811,93916.0,93894.0,0.1]
[1735490657231,0.01670619,93911.0,93894.0,0.1]
[1735490657572,0.01670619,93911.0,93895.0,0.02039863]
[1735490659341,0.01670619,93911.0,93895.0,0.02339863]
[1735490660449,0.01670619,93911.0,93895.0,0.02439863]
[1735490660678,0.00029742,93910.0,93895.0,0.02439863]
[1735490661562,0.01670619,93911.0,93895.0,0.12439863]
[1735490661789,0.01670619,93911.0,93896.0,0.02283849]
[1735490662987,0.01670619,93911.0,93896.0,0.02583849]
[1735490663850,8.53e-05,93921.0,93896.0,0.003]
[1735490664044,0.10398632,93920.0,93896.0,0.003]
[1735490664272,0.10429569,93920.0,93896.0,0.003]
[1735490664870,0.10429569,93920.0,93896.0,0.004]
[1735490665236,0.10429569,93920.0,93897.0,0.01041706]
[1735490667363,0.01670615,93915.0,93897.0,0.01041706]
[1735490668220,0.00031773,93914.0,93897.0,0.01041706]
[1735490668428,0.10398632,93913.0,93895.0,0.0001706]
[1735490668612,0.0807,93912.0,93895.0,0.0001706]
[1735490668922,0.0807,93898.0,93876.0,0.00010019]
[1735490669103,0.15358632,93897.0,93876.0,0.00010019]
[1735490669604,0.0807,93891.0,93876.0,0.00010019]
[1735490669815,0.10398632,93890.0,93876.0,0.00010019]
[1735490670391,0.10398632,93890.0,93876.0,0.00110019]
[1735490672183,0.10398632,93890.0,93876.0,0.00010019]
[1735490672400,0.0807,93891.0,93876.0,0.00010019]
[1735490672634,0.008,93890.0,93878.0,0.1]
[1735490672868,0.008,93890.0,93880.0,0.1]
[1735490673062,0.008,93890.0,93876.0,0.00010019]
[1735490673063,0.11198632,93890.0,93876.0,0.00010019]
[1735490673273,0.11498632,93890.0,93876.0,0.00010019]
[1735490673418,0.10698632,93890.0,93876.0,0.00010019]
[1735490674067,0.003,93890.0,93877.0,0.1]
[1735490674281,0.003,93890.0,93878.0,0.01001002]
[1735490674483,0.02680928,93927.0,93885.0,0.07319072]
[1735490674796,0.10398632,93920.0,93885.0,0.07319072]
[1735490674958,0.003,93891.0,93885.0,0.07319072]
[1735490675153,8.53e-05,93890.0,93885.0,0.07319072]
[1735490675401,8.53e-05,93890.0,93885.0,0.09151079]
[1735490675777,8.53e-05,93890.0,93885.0,0.09251079]
[1735490675982,8.53e-05,93890.0,93889.0,0.07319072]
[1735490677810,0.10398632,93919.0,93891.0,0.07319072]
[1735490678010,0.01670818,93900.0,93892.0,0.07319072]
[1735490678315,0.10398632,93919.0,93892.0,0.07319072]
[1735490678514,0.01670794,93900.0,93893.0,0.00731907]
[1735490678713,0.10398632,93919.0,93895.0,0.07319072]
[1735490678869,0.10398632,93919.0,93898.0,0.07319072]
[1735490679073,0.01670764,93904.0,93898.0,0.07319072]
[1735490679289,0.001,93900.0,93899.0,0.00795098]
[1735490679478,0.01670725,93903.0,93899.0,0.00795098]
[1735490680922,0.01670725,93903.0,93898.0,0.07319072]
[1735490682403,0.01670725,93903.0,93899.0,0.003]
[1735490682796,0.001,93900.0,93899.0,0.011]
[1735490682989,0.01670725,93903.0,93898.0,0.07319072]
[1735490683329,0.01770725,93903.0,93898.0,0.08219072]
[1735490683555,0.01770725,93903.0,93898.0,0.08440979]
[1735490683869,0.002,93903.0,93899.0,0.006]
[1735490684641,0.10398632,93919.0,93898.0,0.07319072]
[1735490685907,0.10398632,93919.0,93899.0,0.003]
[1735490686209,0.001,93903.0,93899.0,0.003]
[1735490686417,0.0010853,93903.0,93897.0,0.07319072]
[1735490686577,0.0010853,93903.0,93899.0,0.00821907]
[1735490686990,8.53e-05,93903.0,93899.0,0.00821907]
[1735490687192,0.01679214,93903.0,93899.0,0.00821907]
[1735490687546,0.01779214,93903.0,93899.0,0.01421907]
[1735490688551,0.01779214,93903.0,93900.0,0.00874098]
[1735490689846,0.01679214,93903.0,93900.0,0.00874098]
[1735490690287,0.0010853,93903.0,93902.0,0.22039072]
[1735490690492,0.09326367,93917.0,93916.0,0.17319072]
[1735490690683,0.09326367,93917.0,93916.0,0.35267704]
[1735490690884,0.09326367,93918.0,93917.0,0.17319072]
[1735490691020,0.09326367,93918.0,93917.0,0.27717704]
[1735490691555,0.09326367,93918.0,93917.0,0.32437704]
[1735490691793,0.09326367,93918.0,93917.0,0.32337704]
[1735490691976,0.0596665,93957.0,93932.0,0.07319072]
[1735490692171,0.16365282,93957.0,93932.0,0.07319072]
[1735490692371,0.01670222,93944.0,93933.0,0.0755]
[1735490693896,0.00050998,93957.0,93933.0,0.0755]
[1735490694383,0.00050998,93957.0,93933.0,0.0775]
[1735490694558,0.00050998,93957.0,93934.0,0.0353677]
[1735490695326,0.00050998,93957.0,93936.0,0.099]
[1735490695531,0.00050998,93957.0,93937.0,0.10398632]
[1735490697005,0.0166998,93953.0,93933.0,0.0755]
[1735490697414,0.001,93951.0,93900.0,0.10774098]
[1735490697629,1.26566832,93950.0,93910.0,0.0773]
[1735490697769,1.26566832,93950.0,93910.0,0.18128632]
[1735490697770,1.07192,93949.0,93910.0,0.18128632]
[1735490697969,0.001,93942.0,93910.0,0.0773]
[1735490698169,0.10398632,93941.0,93908.0,0.07319072]
[1735490698370,0.001,93939.0,93900.0,0.00874098]
[1735490698719,0.001,93933.0,93897.0,0.0773]
[1735490698913,1.87939232,93932.0,93897.0,0.0773]
[1735490699058,1.836339,93931.0,93897.0,0.0773]
[1735490699252,0.10398632,93930.0,93897.0,0.0773]
[1735490699477,1.669605,93929.0,93897.0,0.0773]
[1735490699681,0.1701602,93928.0,93897.0,0.0773]
[1735490700138,0.10398632,93928.0,93917.0,0.001]
[1735490700384,0.10398632,93928.0,93897.0,0.0773]
[1735490700583,0.10398632,93928.0,93897.0,0.0783]
[1735490700835,0.10449598,93928.0,93897.0,0.0783]
[1735490701023,0.10449598,93928.0,93897.0,0.0773]
[1735490701227,0.01670599,93921.0,93897.0,0.0773]
[1735490701439,0.12069231,93921.0,93917.0,0.001]
[1735490701668,0.12069231,93921.0,93897.0,0.0773]
[1735490702080,0.12069231,93921.0,93897.0,0.0783]
[1735490702805,0.01670599,93921.0,93903.0,0.07319072]
[1735490702937,0.01670599,93921.0,93904.0,0.13943402]
[1735490703965,0.01670599,93921.0,93903.0,0.07319072]
[1735490703966,0.01970599,93921.0,93903.0,0.07319072]
[1735490704489,0.01970599,93921.0,93904.0,0.10398632]
[1735490704851,0.01670599,93921.0,93915.0,0.099]
[1735490705054,0.00050966,93928.0,93921.0,0.16919072]
[1735490705252,0.00050966,93928.0,93922.0,0.14263402]
[1735490705657,0.00050966,93928.0,93922.0,0.21282474]
[1735490706525,0.00050966,93928.0,93918.0,0.1233]
[1735490706730,0.00050966,93928.0,93922.0,0.07019072]
[1735490707309,0.00050966,93928.0,93922.0,0.006]
[1735490707507,0.10549598,93928.0,93922.0,0.006]
[1735490707758,0.10398632,93927.0,93922.0,0.006]
[1735490707892,0.10498632,93927.0,93922.0,0.006]
[1735490708297,0.10498632,93927.0,93896.0,0.07019072]
[1735490708298,0.01670537,93926.0,93896.0,0.07019072]
[1735490708501,0.10398632,93925.0,93897.0,0.01476613]
[1735490708727,0.10398632,93925.0,93922.0,0.002]
[1735490709282,0.10398632,93925.0,93897.0,0.01476613]
[1735490710093,0.01670537,93926.0,93898.0,0.10398632]
[1735490710301,0.01670537,93926.0,93922.0,0.005]
[1735490710705,0.01670537,93926.0,93903.0,0.099]
[1735490710921,0.01670537,93926.0,93904.0,0.02881136]
[1735490711921,0.01670537,93926.0,93922.0,0.001]
[1735490713720,0.01670537,93926.0,93911.0,0.07019072]
[1735490713918,0.00050966,93928.0,93911.0,0.07019072]
[1735490714953,0.00050966,93928.0,93922.0,0.003]
[1735490715503,0.00050966,93928.0,93922.0,0.007]
[1735490715701,0.00050966,93928.0,93922.0,0.004]
[1735490715992,0.00050966,93928.0,93919.0,0.0768]
[1735490716186,0.00050966,93928.0,93920.0,0.01758]
[1735490717198,0.01670335,93927.0,93920.0,0.01758]
[1735490717816,0.01670335,93927.0,93920.0,0.003]
[1735490718223,0.01670335,93927.0,93922.0,0.002]
[1735490718656,0.11153046,93947.0,93920.0,0.004]
[1735490718859,0.01670415,93926.0,93919.0,0.0768]
[1735490719187,0.10398632,93946.0,93920.0,0.004]
[1735490719389,0.01670408,93925.0,93920.0,0.004]
[1735490719598,0.14957223,93946.0,93920.0,0.004]
[1735490719805,0.14957223,93946.0,93920.0,0.002]
[1735490720014,0.01670408,93925.0,93920.0,0.002]
[1735490720163,0.14957223,93946.0,93920.0,0.002]
[1735490720363,0.01670364,93940.0,93920.0,0.01266]
[1735490720577,0.10398632,93939.0,93920.0,0.01266]
[1735490720785,0.10398632,93939.0,93922.0,0.002]
[1735490721144,0.10398632,93939.0,93920.0,0.01266]
[1735490721913,0.10598632,93939.0,93920.0,0.01266]
[1735490722158,0.10598632,93939.0,93921.0,0.013726]
[1735490722388,0.10398632,93939.0,93921.0,0.013726]
[1735490723017,0.10498632,93939.0,93921.0,0.013726]
[1735490723675,0.10398632,93939.0,93921.0,0.013726]
[1735490723850,0.10598632,93939.0,93921.0,0.013726]
[1735490724197,0.10398632,93939.0,93919.0,0.0768]
[1735490724549,0.10498632,93939.0,93919.0,0.0768]
[1735490725359,0.10398632,93939.0,93919.0,0.0768]
[1735490725565,0.10498632,93939.0,93919.0,0.0768]
[1735490727337,0.01670378,93935.0,93919.0,0.0768]
[1735490728570,0.01670378,93935.0,93919.0,0.001]
[1735490728571,0.11615533,93934.0,93919.0,0.001]
[1735490728752,0.10398632,93934.0,93919.0,0.001]
[1735490728894,0.10398632,93934.0,93919.0,0.002]
[1735490729304,0.10398632,93934.0,93910.0,0.081]
[1735490729510,0.10398632,93934.0,93910.0,0.08150966]
[1735490729726,0.10398632,93934.0,93910.0,0.1112997]
[1735490730345,0.14119522,93931.0,93910.0,0.1112997]
[1735490730539,0.14119522,93931.0,93910.0,0.08150966]
[1735490730921,0.14119522,93933.0,93910.0,0.08150966]
[1735490731133,0.14119522,93933.0,93919.0,0.001]
[1735490732599,0.14119522,93933.0,93916.0,0.06119072]
[1735490733019,0.02470378,93935.0,93916.0,0.06119072]
[1735490733397,0.02470378,93935.0,93917.0,0.02417004]
[1735490733633,0.001,93934.0,93917.0,0.02417004]
[1735490733945,0.10498632,93934.0,93916.0,0.06119072]
[1735490734112,0.001,93934.0,93916.0,0.06119072]
[1735490735311,0.16743168,93941.0,93916.0,0.06119072]
[1735490735549,0.10398632,93940.0,93916.0,0.06119072]
[1735490735716,0.10398632,93940.0,93917.0,0.0241871]
[1735490736023,0.10398632,93940.0,93917.0,0.08537782]
[1735490737158,0.01670298,93935.0,93917.0,0.08537782]
[1735490737713,0.01670298,93935.0,93921.0,0.06119072]
[1735490738512,0.01670298,93935.0,93922.0,0.0462]
[1735490738691,0.01670298,93935.0,93922.0,0.07747778]
[1735490739110,0.01670298,93935.0,93932.0,0.06119072]
[1735490739307,0.23387671,93957.0,93922.0,0.1452]
[1735490739308,0.23387671,93957.0,93934.0,0.16019072]
[1735490739539,0.23387671,93957.0,93938.0,0.099]
[1735490739765,0.01670051,93947.0,93935.0,0.10659072]
[1735490739981,0.01670051,93947.0,93933.0,0.1743]
[1735490739982,0.10398632,93946.0,93933.0,0.0753]
[1735490740180,0.01206868,93945.0,93933.0,0.0753]
[1735490740334,0.10398632,93944.0,93933.0,0.0753]
[1735490740531,0.10398632,93944.0,93922.0,0.0753]
[1735490741157,0.10398632,93944.0,93923.0,0.06119072]
[1735490742478,0.10398632,93944.0,93938.0,0.001]
[1735490743032,0.10398632,93944.0,93923.0,0.06219072]
[1735490743234,0.10398632,93944.0,93923.0,0.09037979]
[1735490743437,0.10398632,93944.0,93923.0,0.08037979]
[1735490744463,0.18845199,93950.0,93923.0,0.17837979]
[1735490744669,0.29243831,93950.0,93923.0,0.17837979]
[1735490744904,0.14133702,93946.0,93938.0,0.001]
[1735490745269,0.14133702,93946.0,93923.0,0.17837979]
[1735490745471,0.14133702,93946.0,93924.0,0.02990798]
[1735490747159,0.14133702,93942.0,93924.0,0.02990798]
[1735490747363,0.01670121,93941.0,93924.0,0.02990798]
[1735490747782,0.01670121,93941.0,93923.0,0.15019072]
[1735490747980,0.01670121,93941.0,93932.0,0.05119072]
[1735490748280,0.01670121,93941.0,93933.0,0.0753]
[1735490748442,0.15803823,93941.0,93933.0,0.0753]
[1735490749404,0.01670121,93941.0,93933.0,0.0753]
[1735490750452,0.01670121,93941.0,93934.0,0.10398632]
[1735490750659,0.14142232,93957.0,93945.0,0.05119072]
[1735490750851,0.01669904,93956.0,93946.0,0.0811]
[1735490751073,0.01669904,93956.0,93947.0,0.02312907]
[1735490751904,0.01685187,93956.0,93947.0,0.02312907]
[1735490752704,0.01685187,93956.0,93946.0,0.0811]
[1735490752913,0.01685187,93956.0,93947.0,0.003]
[1735490753122,0.01185187,93956.0,93947.0,0.003]
[1735490753461,0.00015283,93956.0,93947.0,0.003]
[1735490755600,0.00015283,93956.0,93947.0,0.004]
[1735490755804,0.00015283,93956.0,93948.0,0.01541907]
[1735490756001,0.00015283,93956.0,93949.0,0.0798]
[1735490759719,0.00015283,93956.0,93949.0,0.0828]
[1735490760353,0.00023813,93956.0,93949.0,0.0828]
[1735490761155,0.00023813,93956.0,93949.0,0.0838]
[1735490761535,0.00023813,93956.0,93950.0,0.02494098]
[1735490761876,0.00023813,93956.0,93949.0,0.0838]
[1735490762567,0.00023813,93956.0,93949.0,0.0808]
[1735490762960,0.00023813,93956.0,93950.0,0.003]
[1735490763368,0.00023813,93956.0,93949.0,0.13199072]
[1735490763944,0.00023813,93956.0,93949.0,0.13499072]
[1735490764319,0.00023813,93956.0,93950.0,0.02339907]
[1735490764495,0.00023813,93956.0,93950.0,0.02439907]
[1735490765020,0.00023813,93956.0,93950.0,0.02339907]
[1735490765219,0.00023813,93956.0,93955.0,0.099]
[1735490766948,0.00023813,93956.0,93949.0,0.0798]
[1735490767298,0.00023813,93956.0,93955.0,0.003]
[1735490767911,0.10422445,93956.0,93955.0,0.003]
[1735490768283,0.10522445,93956.0,93955.0,0.003]
[1735490769077,0.10522445,93956.0,93955.0,0.004]
[1735490769601,0.10522445,93956.0,93955.0,0.003]
[1735490769816,0.33901586,93956.0,93955.0,0.003]
[1735490770697,0.001,93953.0,93923.0,0.0001706]
[1735490770898,0.13789644,93952.0,93924.0,0.05119072]
[1735490771099,0.13789644,93952.0,93923.0,0.0001706]
[1735490771337,0.01670049,93946.0,93924.0,0.05119072]
[1735490771550,0.10398632,93945.0,93924.0,0.05119072]
[1735490771750,0.10398632,93945.0,93923.0,0.0001706]
[1735490772183,0.10398632,93945.0,93924.0,0.0001706]
[1735490773084,0.24522489,93945.0,93924.0,0.0001706]
[1735490773891,0.14123857,93945.0,93925.0,0.01313319]
[1735490774122,0.14123857,93944.0,93925.0,0.01313319]
[1735490774864,0.14123857,93944.0,93926.0,0.10398632]
[1735490775120,0.14123857,93944.0,93931.0,0.1477]
[1735490775365,0.14123857,93961.0,93931.0,0.1477]
[1735490775528,0.14123857,93961.0,93936.0,0.05119072]
[1735490775742,0.14123857,93961.0,93944.0,0.05119072]
[1735490775947,0.14123857,93961.0,93945.0,0.0814]
[1735490776340,0.18840329,93964.0,93945.0,0.0814]
[1735490776341,8.52e-05,93964.0,93945.0,0.0814]
[1735490777133,0.01669836,93954.0,93945.0,0.0814]
[1735490778817,0.01669836,93954.0,93945.0,0.0874]
[1735490779261,0.01669836,93954.0,93945.0,0.0854]
[1735490779490,0.01669836,93954.0,93948.0,0.0814]
[1735490779667,8.52e-05,93964.0,93955.0,0.15019072]
[1735490779870,8.52e-05,93964.0,93955.0,0.33661056]
[1735490780044,8.52e-05,93964.0,93955.0,0.33557704]
[1735490781519,8.52e-05,93964.0,93955.0,0.0904]
[1735490781725,8.52e-05,93964.0,93955.0,0.0814]
[1735490782099,8.52e-05,93964.0,93955.0,0.009]
[1735490782467,8.52e-05,93964.0,93945.0,0.05119072]
[1735490782709,8.52e-05,93964.0,93955.0,0.009]
[1735490782912,0.00123813,93956.0,93955.0,0.016]
[1735490783116,0.10522445,93956.0,93955.0,0.016]
[1735490783333,0.12192137,93956.0,93955.0,0.016]
[1735490783541,0.12092137,93956.0,93955.0,0.009]
[1735490783915,0.10422445,93956.0,93955.0,0.009]
[1735490784159,0.10422445,93956.0,93945.0,0.001]
[1735490784360,0.10398632,93955.0,93945.0,0.001]
[1735490785645,0.10398632,93955.0,93945.0,0.002]
[1735490785850,0.10398632,93955.0,93945.0,0.001]
[1735490786384,0.00023813,93956.0,93945.0,0.001]
[1735490786844,0.01669965,93954.0,93945.0,0.001]
[1735490787192,0.00669965,93954.0,93945.0,0.001]
[1735490787635,0.00669965,93954.0,93933.0,0.099]
[1735490787817,0.00669965,93954.0,93933.0,0.03072265]
[1735490788042,0.00669965,93954.0,93945.0,0.001]
[1735490788366,0.00669965,93954.0,93933.0,0.03072265]
[1735490788367,0.00669965,93954.0,93932.0,0.05119072]
[1735490788681,0.00669965,93954.0,93945.0,0.002]
[1735490789055,0.00669965,93954.0,93932.0,0.05119072]
[1735490789476,0.00669965,93954.0,93945.0,0.001]
[1735490791394,0.00669965,93954.0,93945.0,0.002]
[1735490791821,0.14134287,93965.0,93945.0,0.002]
[1735490791970,0.01669972,93960.0,93945.0,0.00115283]
[1735490792179,0.01669972,93960.0,93945.0,0.00215283]
[1735490792973,0.01669972,93960.0,93945.0,0.00015283]
[1735490794518,0.01769972,93960.0,93945.0,0.00015283]
[1735490795159,0.01769972,93960.0,93946.0,0.099]
[1735490795440,0.002,93960.0,93948.0,0.0804]
[1735490795611,0.002,93960.0,93949.0,0.0486]
[1735490796258,0.001,93960.0,93949.0,0.0486]
[1735490796375,0.23539761,93975.0,93949.0,0.0486]
[1735490796772,0.042666,93982.0,93949.0,0.0486]
[1735490796773,0.23539761,93981.0,93949.0,0.0486]
[1735490797177,8.53e-05,93969.0,93949.0,0.0486]
[1735490797442,8.53e-05,93969.0,93950.0,0.02433578]
[1735490797820,0.004267,93979.0,93950.0,0.02433578]
[1735490798028,0.10398632,93978.0,93950.0,0.02433578]
[1735490798625,0.01669776,93972.0,93950.0,0.02433578]
[1735490798810,0.01669776,93972.0,93951.0,0.03228843]
[1735490803250,0.01669776,93972.0,93949.0,0.0486]
[1735490803805,0.01669776,93972.0,93955.0,0.1]
[1735490804015,8.52e-05,94015.0,93955.0,0.1]
[1735490804224,0.042663,93989.0,93955.0,0.1]
[1735490804426,0.10398632,93988.0,93959.0,0.0814]
[1735490804774,0.10398632,93988.0,93960.0,0.02325907]
[1735490805511,0.10698632,93988.0,93960.0,0.02325907]
[1735490806790,0.10698632,93988.0,93960.0,0.02320526]
[1735490806999,0.10389313,93988.0,93960.0,0.02320526]
[1735490807171,0.01669411,93982.0,93960.0,0.02320526]
[1735490807331,0.10398632,93981.0,93961.0,0.0256796]
[1735490808778,0.01669411,93982.0,93963.0,0.1]
[1735490810500,0.01669411,93982.0,93961.0,0.0276796]
[1735490810701,0.01669411,93982.0,93963.0,0.1]
[1735490811523,0.01669411,93982.0,93963.0,0.101]
[1735490811950,0.01669411,93982.0,93963.0,0.12694409]
[1735490812497,0.01669411,93982.0,93964.0,0.0476]